bitfinex-derivatives/quotes_BTCF0:USTF0_20241226
["timestamp","ask_amount","ask_price","bid_price","bid_amount"]
[1735175912455,0.04202133,98832.0,98831.0,0.3608]
[1735175913167,0.04302133,98832.0,98831.0,0.3608]
[1735175913356,0.40382133,98832.0,98821.0,0.3608]
[1735175913557,0.040507,98822.0,98821.0,0.3608]
[1735175915865,0.041507,98822.0,98821.0,0.3608]
[1735175916465,0.044507,98822.0,98821.0,0.3608]
[1735175916863,0.05450414,98822.0,98821.0,0.3608]
[1735175917767,0.05350414,98822.0,98821.0,0.3608]
[1735175917969,0.05450414,98822.0,98821.0,0.3608]
[1735175918263,0.004,98822.0,98821.0,0.3608]
[1735175918469,0.00151833,98832.0,98821.0,0.4617]
[1735175918969,0.001,98822.0,98821.0,0.4617]
[1735175919171,0.05228233,98832.0,98823.0,0.040506]
[1735175919769,0.05228233,98832.0,98831.0,0.3608]
[1735175920568,0.05328233,98832.0,98831.0,0.3608]
[1735175920867,0.01277933,98832.0,98831.0,0.3608]
[1735175921063,0.00151833,98832.0,98831.0,0.3608]
[1735175921262,0.00651833,98832.0,98831.0,0.3608]
[1735175921571,0.040497,98846.0,98842.0,0.040498]
[1735175921863,0.04682385,98851.0,98844.0,0.040498]
[1735175922068,0.04682385,98851.0,98849.0,0.3608]
[1735175922069,0.040495,98850.0,98849.0,0.3608]
[1735175923669,0.040495,98850.0,98849.0,0.3618]
[1735175924669,0.044495,98850.0,98849.0,0.3608]
[1735175925267,0.004,98850.0,98839.0,0.66415148]
[1735175925463,0.040498,98844.0,98839.0,0.66363148]
[1735175925967,0.040498,98843.0,98839.0,0.66363148]
[1735175926171,0.040499,98841.0,98839.0,0.30283148]
[1735175926366,0.3608,98845.0,98835.0,0.30283148]
[1735175926665,0.0405,98838.0,98835.0,0.30283148]
[1735175926872,0.3608,98845.0,98835.0,0.30283148]
[1735175927062,0.040501,98837.0,98835.0,0.30283148]
[1735175928471,0.040503,98832.0,98831.0,0.24168029]
[1735175929966,0.3608,98838.0,98826.0,0.66363148]
[1735175930168,0.3608,98838.0,98829.0,0.040504]
[1735175930372,0.040498,98845.0,98829.0,0.040504]
[1735175930570,0.040503,98831.0,98829.0,0.040504]
[1735175930870,0.01560102,98846.0,98826.0,0.66415148]
[1735175930871,0.040504,98828.0,98826.0,0.30335148]
[1735175931071,0.040504,98828.0,98826.0,0.30283148]
[1735175931462,0.0405,98838.0,98836.0,0.24206483]
[1735175933173,0.1001,98837.0,98833.0,0.24206483]
[1735175933470,0.040502,98834.0,98833.0,0.24206483]
[1735175933671,1.110502,98834.0,98833.0,0.24206483]
[1735175934572,1.07,98834.0,98825.0,0.24206483]
[1735175934772,0.040505,98827.0,98825.0,0.24206483]
[1735175935563,0.1089,98826.0,98825.0,0.24206483]
[1735175935870,0.040505,98825.0,98824.0,0.24206483]
[1735175937170,0.040505,98825.0,98824.0,0.24306483]
[1735175937570,0.040505,98825.0,98824.0,0.001]
[1735175937769,0.04051,98814.0,98813.0,0.24206483]
[1735175939082,0.04051,98814.0,98813.0,0.24306483]
[1735175939476,0.04051,98814.0,98813.0,0.001]
[1735175940368,0.04051,98814.0,98813.0,0.002]
[1735175940576,0.04051,98814.0,98813.0,0.001]
[1735175940769,0.04251,98814.0,98813.0,0.001]
[1735175940972,0.040515,98802.0,98801.0,0.24206483]
[1735175942470,0.040515,98802.0,98800.0,0.24206483]
[1735175942774,0.040515,98802.0,98801.0,0.001]
[1735175943674,0.05088939,98802.0,98801.0,0.001]
[1735175943874,0.41168939,98802.0,98801.0,0.001]
[1735175944478,0.41168939,98802.0,98800.0,0.003]
[1735175944672,0.41168939,98802.0,98801.0,0.001]
[1735175945371,0.41268939,98802.0,98801.0,0.001]
[1735175945574,0.040521,98787.0,98786.0,0.24206483]
[1735175945777,0.401321,98787.0,98786.0,0.24206483]
[1735175946780,0.3608,98787.0,98773.0,0.3608]
[1735175947082,0.040526,98775.0,98773.0,0.3608]
[1735175948365,0.040526,98775.0,98773.0,0.3698]
[1735175948566,0.040526,98775.0,98773.0,0.3748]
[1735175951380,0.08069419,98783.0,98780.0,0.040524]
[1735175951576,0.00068,98787.0,98781.0,0.3608]
[1735175951777,0.04052,98791.0,98787.0,0.040521]
[1735175952084,0.040517,98798.0,98790.0,0.3608]
[1735175952292,0.040517,98798.0,98795.0,0.040518]
[1735175952589,0.3608,98802.0,98790.0,0.3608]
[1735175952778,0.37098272,98802.0,98790.0,0.3608]
[1735175952981,0.040516,98799.0,98795.0,0.040518]
[1735175953774,0.37098272,98802.0,98798.0,0.040516]
[1735175953775,0.3608,98802.0,98798.0,0.040516]
[1735175953987,0.041193,98807.0,98802.0,0.040515]
[1735175954280,0.3608,98815.0,98800.0,0.3608]
[1735175954281,0.00996314,98813.0,98806.0,0.040513]
[1735175954586,0.04051,98814.0,98806.0,0.040513]
[1735175954975,0.04051,98814.0,98810.0,0.3608]
[1735175955180,0.08069419,98820.0,98810.0,0.3608]
[1735175955379,0.040511,98813.0,98810.0,0.3608]
[1735175955574,0.09087691,98820.0,98810.0,0.3608]
[1735175955778,0.040511,98813.0,98810.0,0.3608]
[1735175956877,0.040511,98811.0,98810.0,0.004]
[1735175957287,0.040512,98810.0,98801.0,0.040515]
[1735175957982,0.040508,98819.0,98813.0,0.04051]
[1735175958185,0.040508,98819.0,98818.0,0.3608]
[1735175960189,0.041508,98819.0,98818.0,0.3608]
[1735175960779,0.002,98819.0,98818.0,0.3608]
[1735175960983,0.002,98819.0,98818.0,0.401308]
[1735175961598,0.001,98819.0,98818.0,0.401308]
[1735175964288,0.04018205,98825.0,98818.0,0.401308]
[1735175964590,0.04018205,98825.0,98819.0,0.3608]
[1735175965480,0.040507,98821.0,98819.0,0.3608]
[1735175965681,0.01014322,98826.0,98819.0,0.3608]
[1735175965890,0.00068,98830.0,98826.0,0.040505]
[1735175966092,0.00151815,98842.0,98829.0,0.3608]
[1735175966389,0.04201615,98842.0,98841.0,0.3608]
[1735175967084,0.00151815,98842.0,98841.0,0.3608]
[1735175967288,0.00151815,98842.0,98841.0,0.459]
[1735175968397,0.040493,98855.0,98842.0,0.040498]
[1735175968590,0.040493,98855.0,98854.0,0.3608]
[1735175969892,0.042493,98855.0,98854.0,0.3608]
[1735175973192,0.042493,98855.0,98854.0,0.38144922]
[1735175979998,0.042493,98855.0,98854.0,0.02064922]
[1735175983015,0.040498,98843.0,98842.0,0.24173727]
[1735175984607,0.042498,98843.0,98842.0,0.24173727]
[1735175984808,0.040504,98830.0,98828.0,0.040504]
[1735175985623,0.002,98843.0,98827.0,0.60305727]
[1735175985824,0.040504,98828.0,98827.0,0.60253727]
[1735175986523,0.040504,98828.0,98827.0,0.3608]
[1735175987521,0.040507,98822.0,98821.0,0.30263894]
[1735175987719,0.040508,98819.0,98818.0,0.24197681]
[1735175988128,0.3608,98835.0,98818.0,0.24197681]
[1735175988428,0.040505,98827.0,98826.0,0.3608]
[1735175990416,0.040505,98827.0,98826.0,0.54237044]
[1735175992721,0.040505,98827.0,98826.0,0.3608]
[1735175993622,0.040505,98827.0,98826.0,0.464]
[1735175994731,0.040505,98827.0,98826.0,0.466]
[1735175995434,0.040505,98827.0,98826.0,0.468]
[1735175997034,0.040505,98827.0,98826.0,0.467]
[1735175999932,0.040505,98827.0,98826.0,0.466]
[1735176000136,0.040505,98827.0,98826.0,0.467]
[1735176000739,0.040505,98827.0,98826.0,0.466]
[1735176000931,0.040505,98827.0,98826.0,0.468]
[1735176001840,0.040505,98827.0,98826.0,0.467]
[1735176002141,0.040505,98827.0,98826.0,0.465]
[1735176002336,0.01038411,98835.0,98826.0,0.467]
[1735176002537,0.00151816,98842.0,98826.0,0.467]
[1735176002860,0.00151816,98842.0,98840.0,0.401299]
[1735176003639,0.08983704,98853.0,98852.0,0.040494]
[1735176003841,0.11960232,98858.0,98857.0,0.040492]
[1735176004137,0.17647535,98870.0,98863.0,0.04049]
[1735176004436,0.01001015,98870.0,98863.0,0.3608]
[1735176004639,0.040489,98865.0,98863.0,0.3608]
[1735176005538,0.040489,98865.0,98863.0,0.3618]
[1735176006030,0.040486,98872.0,98863.0,0.3618]
[1735176006440,0.040486,98872.0,98871.0,0.3608]
[1735176007237,0.044486,98872.0,98871.0,0.3608]
[1735176008740,0.044486,98872.0,98871.0,0.3618]
[1735176009343,0.044486,98872.0,98871.0,0.001]
[1735176010950,0.004,98872.0,98871.0,0.001]
[1735176011248,0.004,98872.0,98871.0,0.3618]
[1735176011641,0.3608,98897.0,98871.0,0.3618]
[1735176011846,0.040481,98886.0,98883.0,0.3608]
[1735176012454,0.040481,98885.0,98883.0,0.3608]
[1735176013754,0.046481,98885.0,98883.0,0.3618]
[1735176014552,0.046481,98885.0,98883.0,0.3628]
[1735176015149,0.006,98885.0,98884.0,0.040481]
[1735176016153,0.1,98900.0,98883.0,0.36236]
[1735176016352,0.1,98900.0,98899.0,0.3608]
[1735176016756,0.11003942,98900.0,98899.0,0.3608]
[1735176017153,0.1,98900.0,98899.0,0.3608]
[1735176018063,0.1,98900.0,98899.0,0.3618]
[1735176018654,0.106,98900.0,98899.0,0.3618]
[1735176018856,0.106,98900.0,98899.0,0.402275]
[1735176019455,0.104,98900.0,98899.0,0.402275]
[1735176020650,0.3608,98919.0,98899.0,0.3618]
[1735176020847,0.04047,98911.0,98907.0,0.3608]
[1735176021059,0.04047,98911.0,98908.0,0.1009]
[1735176021563,0.040468,98917.0,98911.0,0.04047]
[1735176021759,0.040468,98917.0,98908.0,0.1009]
[1735176022058,0.040468,98917.0,98914.0,0.040469]
[1735176022557,0.040468,98917.0,98916.0,0.3608]
[1735176022952,0.045468,98917.0,98916.0,0.3608]
[1735176023855,0.005,98917.0,98916.0,0.401268]
[1735176024360,0.040462,98930.0,98916.0,0.3608]
[1735176024563,0.040462,98930.0,98927.0,0.3608]
[1735176024762,0.040463,98928.0,98927.0,0.3608]
[1735176025860,0.003,98930.0,98927.0,0.3608]
[1735176026067,0.040457,98943.0,98927.0,0.3608]
[1735176026255,0.040457,98943.0,98942.0,0.3608]
[1735176027154,0.3608,98943.0,98927.0,0.3618]
[1735176027360,0.040461,98935.0,98927.0,0.3608]
[1735176027562,0.040461,98935.0,98931.0,0.040462]
[1735176028452,0.3608,98947.0,98927.0,0.3608]
[1735176028653,0.08069419,98941.0,98927.0,0.3608]
[1735176028857,0.040466,98922.0,98921.0,0.3608]
[1735176029057,0.040469,98915.0,98914.0,0.18141373]
[1735176030465,0.04047,98911.0,98907.0,0.401792]
[1735176030773,0.040471,98909.0,98907.0,0.3608]
[1735176031663,0.040471,98909.0,98907.0,0.3628]
[1735176031864,0.040471,98909.0,98907.0,0.3658]
[1735176032271,0.1113388,98921.0,98907.0,0.3658]
[1735176033073,0.1113388,98921.0,98907.0,0.3638]
[1735176033259,0.1113388,98921.0,98907.0,0.3658]
[1735176033660,0.1113388,98921.0,98907.0,0.3638]
[1735176033967,0.040471,98910.0,98907.0,0.3668]
[1735176035670,0.040471,98908.0,98907.0,0.3668]
[1735176035973,0.040471,98908.0,98907.0,0.006]
[1735176036171,0.040471,98908.0,98907.0,0.18641373]
[1735176036665,0.040471,98908.0,98907.0,0.18441373]
[1735176036865,0.040471,98908.0,98907.0,0.18641373]
[1735176037260,0.040471,98908.0,98907.0,0.18741373]
[1735176037467,0.040471,98908.0,98907.0,0.006]
[1735176037883,0.040471,98908.0,98907.0,0.003]
[1735176038176,0.05047929,98908.0,98907.0,0.003]
[1735176038567,0.01000829,98908.0,98895.0,0.18141373]
[1735176038774,0.040471,98908.0,98907.0,0.001]
[1735176039174,0.0163165,98916.0,98911.0,0.04047]
[1735176039371,0.040471,98909.0,98907.0,0.001]
[1735176040274,0.040474,98903.0,98900.0,0.3608]
[1735176042171,0.04047,98911.0,98905.0,0.040473]
[1735176042477,0.040471,98910.0,98908.0,0.3608]
[1735176043569,0.040471,98910.0,98909.0,0.1051]
[1735176044869,0.040471,98910.0,98909.0,0.1061]
[1735176045776,0.040471,98910.0,98909.0,0.40118828]
[1735176046471,0.040471,98910.0,98909.0,0.29608828]
[1735176048375,0.040471,98910.0,98909.0,0.29808828]
[1735176049576,0.040471,98910.0,98909.0,0.30008828]
[1735176050082,0.040471,98910.0,98909.0,0.29808828]
[1735176050280,0.01566029,98913.0,98909.0,0.29808828]
[1735176050487,0.04047,98913.0,98911.0,0.3608]
[1735176051577,0.00632379,98918.0,98912.0,0.040469]
[1735176051778,0.040468,98918.0,98912.0,0.040469]
[1735176051978,0.00632379,98925.0,98912.0,0.040469]
[1735176052181,0.00632379,98918.0,98912.0,0.040469]
[1735176052481,0.00632379,98929.0,98912.0,0.040469]
[1735176052690,0.09110376,98930.0,98912.0,0.040469]
[1735176052984,0.00632332,98929.0,98912.0,0.040469]
[1735176053183,0.040468,98916.0,98912.0,0.040469]
[1735176053583,0.040468,98916.0,98915.0,0.30264709]
[1735176054778,0.040468,98916.0,98914.0,0.34311609]
[1735176056282,0.040468,98916.0,98915.0,0.30364709]
[1735176057185,0.05073434,98916.0,98915.0,0.12338463]
[1735176057371,0.040472,98907.0,98897.0,0.35227236]
[1735176057575,0.040476,98898.0,98897.0,0.35227236]
[1735176057987,0.040479,98889.0,98888.0,0.00052]
[1735176058188,0.401279,98889.0,98887.0,0.41738745]
[1735176058378,0.1015,98888.0,98887.0,0.41682745]
[1735176059185,0.4015,98888.0,98875.0,0.43127968]
[1735176059381,0.401285,98876.0,98875.0,0.43127968]
[1735176059690,0.401285,98876.0,98875.0,0.18170556]
[1735176060475,0.401285,98876.0,98875.0,0.18270556]
[1735176060774,0.401285,98876.0,98875.0,0.18170556]
[1735176060988,0.040493,98856.0,98852.0,0.401854]
[1735176061576,0.040494,98853.0,98852.0,0.36136]
[1735176061781,0.040496,98848.0,98847.0,0.099]
[1735176061978,0.040499,98842.0,98838.0,0.1033]
[1735176062185,0.08069419,98850.0,98838.0,0.1033]
[1735176062488,0.08069419,98850.0,98834.0,0.1057]
[1735176062780,0.0405,98838.0,98834.0,0.1057]
[1735176063885,0.0405,98838.0,98835.0,0.3608]
[1735176065382,0.040501,98837.0,98835.0,0.3608]
[1735176065888,0.040501,98837.0,98835.0,0.3668]
[1735176066082,0.040501,98837.0,98835.0,0.3758]
[1735176066486,0.040501,98837.0,98835.0,0.3668]
[1735176066796,0.040501,98837.0,98835.0,0.3758]
[1735176068487,0.040501,98837.0,98835.0,0.015]
[1735176068788,0.040505,98827.0,98820.0,0.107]
[1735176068972,0.040505,98825.0,98820.0,0.107]
[1735176069580,0.3608,98829.0,98818.0,9.824e-05]
[1735176069775,0.040508,98819.0,98818.0,9.824e-05]
[1735176072274,0.041508,98819.0,98818.0,9.824e-05]
[1735176072691,0.041508,98819.0,98818.0,0.00109824]
[1735176073484,0.05180522,98819.0,98818.0,0.00109824]
[1735176073787,0.05180522,98819.0,98818.0,0.001]
[1735176073988,0.15680522,98819.0,98818.0,0.001]
[1735176074585,0.41629722,98819.0,98790.0,0.3608]
[1735176074788,0.040519,98791.0,98790.0,0.3608]
[1735176075287,0.040523,98782.0,98781.0,0.2132]
[1735176076286,0.05087405,98782.0,98781.0,0.105]
[1735176077093,0.05187405,98782.0,98781.0,0.12]
[1735176077898,0.05187405,98782.0,98781.0,0.015]
[1735176079889,0.040526,98776.0,98775.0,0.3608]
[1735176081596,0.041526,98776.0,98775.0,0.3698]
[1735176082183,0.042526,98776.0,98775.0,0.3758]
[1735176084388,0.3608,98796.0,98789.0,0.04052]
[1735176084691,0.040514,98806.0,98798.0,0.040516]
[1735176084891,0.401314,98805.0,98799.0,0.0998]
[1735176085097,0.08069419,98810.0,98799.0,0.0998]
[1735176085098,0.01024991,98806.0,98799.0,0.0998]
[1735176085290,0.08069419,98810.0,98805.0,0.040514]
[1735176085487,0.040513,98808.0,98805.0,0.040514]
[1735176085697,0.040513,98808.0,98807.0,0.3608]
[1735176087094,0.040513,98808.0,98807.0,0.3628]
[1735176087888,0.042513,98808.0,98807.0,0.3628]
[1735176088091,0.002,98808.0,98807.0,0.403313]
[1735176088585,0.002,98808.0,98807.0,0.401313]
[1735176088789,0.00151864,98811.0,98807.0,0.401313]
[1735176088989,0.00151864,98811.0,98807.0,0.3618]
[1735176089198,0.040512,98808.0,98807.0,0.001]
[1735176089500,0.040512,98808.0,98807.0,0.002]
[1735176089693,0.040512,98808.0,98807.0,0.004]
[1735176091000,0.040512,98808.0,98807.0,0.3638]
[1735176091403,0.00151864,98811.0,98809.0,0.040512]
[1735176091997,0.040512,98808.0,98807.0,0.36532]
[1735176092192,0.040512,98808.0,98807.0,0.3648]
[1735176092403,0.040512,98808.0,98807.0,0.3618]
[1735176092605,0.040512,98808.0,98807.0,0.3608]
[1735176093306,0.040512,98808.0,98807.0,0.3628]
[1735176093697,0.040512,98808.0,98807.0,0.403313]
[1735176094103,0.040512,98808.0,98807.0,0.404313]
[1735176094600,0.040512,98808.0,98807.0,0.403313]
[1735176094806,0.040512,98808.0,98807.0,0.406313]
[1735176095298,0.040512,98808.0,98807.0,0.401313]
[1735176095504,0.040512,98808.0,98807.0,0.404313]
[1735176095701,0.040512,98808.0,98807.0,0.3638]
[1735176097315,0.19052424,98808.0,98807.0,0.3638]
[1735176097509,0.19052424,98808.0,98807.0,0.3628]
[1735176098304,0.15001224,98808.0,98807.0,0.3628]
[1735176098704,0.00151864,98811.0,98807.0,0.7246]
[1735176098910,0.040505,98827.0,98807.0,0.5513993]
[1735176099209,0.040502,98835.0,98823.0,0.3608]
[1735176099406,0.040502,98835.0,98826.0,0.040505]
[1735176099807,0.00151812,98836.0,98826.0,0.040505]
[1735176099808,0.2759286,98834.0,98826.0,0.040505]
[1735176100016,0.19231573,98829.0,98826.0,0.040505]
[1735176100209,0.19151572,98829.0,98827.0,0.040504]
[1735176101617,0.19651572,98829.0,98827.0,0.040504]
[1735176101813,0.001,98828.0,98827.0,0.040504]
[1735176102513,0.006,98829.0,98827.0,0.040504]
[1735176103214,0.005,98829.0,98828.0,0.1065]
[1735176104507,0.00151812,98836.0,98835.0,0.040501]
[1735176104716,0.00151812,98836.0,98835.0,0.401301]
[1735176105314,0.12014545,98841.0,98840.0,0.040499]
[1735176105522,0.3608,98850.0,98845.0,0.040497]
[1735176105712,0.3608,98850.0,98836.0,0.1029]
[1735176105916,0.01011772,98859.0,98840.0,0.040499]
[1735176105917,0.040498,98844.0,98840.0,0.040499]
[1735176106512,0.002,98841.0,98840.0,0.040499]
[1735176107928,0.15018181,98863.0,98840.0,0.3]
[1735176108129,0.15018181,98863.0,98860.0,0.401291]
[1735176108737,0.15018181,98871.0,98860.0,0.401291]
[1735176109539,0.15018181,98871.0,98860.0,0.404291]
[1735176110336,0.040486,98872.0,98860.0,0.404291]
[1735176110531,0.040487,98871.0,98860.0,0.404291]
[1735176110736,0.040489,98867.0,98860.0,0.404291]
[1735176111241,0.040489,98867.0,98860.0,0.407291]
[1735176111731,0.040489,98867.0,98860.0,0.404291]
[1735176111932,0.040489,98867.0,98860.0,0.407291]
[1735176112240,0.040489,98867.0,98860.0,0.406291]
[1735176112636,0.040489,98867.0,98860.0,0.404291]
[1735176112932,0.040489,98867.0,98860.0,0.406291]
[1735176114842,0.3608,98874.0,98860.0,0.403291]
[1735176115141,0.040489,98865.0,98860.0,0.406291]
[1735176115533,0.040489,98865.0,98860.0,0.404291]
[1735176115744,0.040489,98865.0,98860.0,0.406291]
[1735176116040,0.3608,98865.0,98860.0,0.005]
[1735176116443,0.040491,98862.0,98860.0,0.005]
[1735176116747,0.040491,98862.0,98860.0,0.003]
[1735176116944,0.040491,98862.0,98860.0,0.005]
[1735176117331,0.040488,98869.0,98863.0,0.04049]
[1735176117539,0.040488,98869.0,98864.0,0.040489]
[1735176117744,0.040488,98869.0,98864.0,0.401289]
[1735176117943,0.040488,98868.0,98864.0,0.401289]
[1735176118146,0.040488,98867.0,98864.0,0.040489]
[1735176118343,0.3618,98865.0,98832.0,0.3608]
[1735176118637,0.040506,98823.0,98822.0,0.30083515]
[1735176118842,0.401306,98823.0,98822.0,0.30083515]
[1735176120042,0.401306,98823.0,98817.0,0.35950397]
[1735176120043,0.3608,98823.0,98817.0,0.35950397]
[1735176120230,0.040508,98819.0,98802.0,0.040515]
[1735176120842,0.040508,98819.0,98803.0,0.040514]
[1735176121840,0.043508,98819.0,98803.0,0.040514]
[1735176123737,0.043508,98819.0,98804.0,0.040514]
[1735176123939,0.043508,98819.0,98818.0,0.04062569]
[1735176123940,0.003,98819.0,98818.0,0.04062569]
[1735176124637,0.15018181,98839.0,98836.0,0.040501]
[1735176125544,0.08069419,98840.0,98836.0,0.040501]
[1735176125753,0.12119319,98840.0,98836.0,0.040501]
[1735176125944,0.12119319,98840.0,98837.0,0.0405]
[1735176126146,0.040499,98840.0,98837.0,0.0405]
[1735176126941,0.0405,98838.0,98836.0,0.003]
[1735176127548,0.0405,98838.0,98818.0,0.00511769]
[1735176127754,0.040506,98824.0,98820.0,0.040507]
[1735176128542,0.040506,98824.0,98822.0,0.040507]
[1735176130048,0.040506,98824.0,98822.0,0.043507]
[1735176130351,0.08069419,98828.0,98822.0,0.043507]
[1735176131048,0.12119819,98828.0,98822.0,0.044507]
[1735176131443,0.12119819,98828.0,98822.0,0.041507]
[1735176131638,0.12119819,98828.0,98822.0,0.005]
[1735176131839,0.45133954,98839.0,98837.0,0.0405]
[1735176131840,0.09053954,98839.0,98837.0,0.0405]
[1735176132043,0.08973953,98839.0,98837.0,0.4013]
[1735176133352,0.00151831,98849.0,98848.0,0.040496]
[1735176133653,0.00151831,98849.0,98848.0,0.401296]
[1735176135354,0.00151831,98849.0,98848.0,0.3608]
[1735176135652,0.00151831,98849.0,98848.0,0.3628]
[1735176137151,0.01015142,98866.0,98848.0,0.3628]
[1735176137350,0.040488,98867.0,98858.0,0.3608]
[1735176138144,0.16018204,98877.0,98851.0,0.1064]
[1735176138145,0.01000023,98877.0,98866.0,0.3608]
[1735176138345,0.15018181,98878.0,98876.0,0.3608]
[1735176139155,0.15018181,98878.0,98876.0,0.401284]
[1735176139549,0.040481,98885.0,98876.0,0.3608]
[1735176139751,0.00151752,98887.0,98878.0,0.040484]
[1735176139951,0.00151752,98887.0,98876.0,0.3608]
[1735176140151,0.040484,98877.0,98876.0,0.3608]
[1735176141153,0.040484,98877.0,98876.0,0.3618]
[1735176141559,0.040484,98877.0,98876.0,0.3608]
[1735176141748,0.047484,98877.0,98876.0,0.3618]
[1735176142344,0.049484,98877.0,98876.0,0.3618]
[1735176143251,0.009,98877.0,98857.0,0.3608]
[1735176143455,0.3608,98869.0,98858.0,0.040492]
[1735176143651,0.040491,98860.0,98858.0,0.040492]
[1735176144757,0.044491,98860.0,98858.0,0.040492]
[1735176145060,0.040492,98858.0,98857.0,0.3608]
[1735176146161,0.004,98860.0,98852.0,0.3608]
[1735176146365,0.040494,98854.0,98852.0,0.3608]
[1735176147651,0.042494,98854.0,98852.0,0.3608]
[1735176148255,0.042494,98854.0,98852.0,0.3618]
[1735176149060,0.042494,98854.0,98852.0,0.001]
[1735176150566,0.0985,98853.0,98852.0,0.001]
[1735176150754,0.203,98853.0,98852.0,0.001]
[1735176151868,0.203,98853.0,98838.0,0.0405]
[1735176152072,0.004,98853.0,98852.0,0.3608]
[1735176152362,0.040486,98874.0,98869.0,0.040487]
[1735176152562,0.040486,98874.0,98871.0,0.040487]
[1735176152762,0.040486,98874.0,98872.0,0.040486]
[1735176152957,0.17942722,98875.0,98874.0,0.040485]
[1735176154170,0.040481,98884.0,98880.0,0.040483]
[1735176154469,0.040482,98882.0,98880.0,0.040483]
[1735176156857,0.052482,98882.0,98880.0,0.041483]
[1735176158865,0.052482,98882.0,98880.0,0.001]
[1735176162063,0.3608,98881.0,98859.0,0.22133574]
[1735176162368,0.040491,98860.0,98859.0,0.18084474]
[1735176162562,0.040492,98857.0,98856.0,0.24112632]
[1735176164179,0.003,98857.0,98848.0,0.040496]
[1735176164375,0.040495,98850.0,98848.0,0.040496]
[1735176166774,0.040495,98850.0,98848.0,0.042496]
[1735176167774,0.040495,98850.0,98848.0,0.002]
[1735176167967,0.040494,98854.0,98848.0,0.002]
[1735176168169,0.12028068,98860.0,98848.0,0.002]
[1735176168478,0.040495,98850.0,98848.0,0.002]
[1735176169176,0.3608,98855.0,98848.0,0.002]
[1735176169365,0.040496,98849.0,98848.0,0.002]
[1735176170068,0.3608,98855.0,98848.0,0.002]
[1735176170069,0.12028068,98854.0,98848.0,0.002]
[1735176170267,0.040496,98849.0,98848.0,0.002]
[1735176172272,0.3608,98855.0,98843.0,0.040498]
[1735176172575,0.040497,98846.0,98843.0,0.040498]
[1735176173478,0.040497,98846.0,98843.0,0.044498]
[1735176173772,0.040497,98846.0,98843.0,0.042498]
[1735176173967,0.040497,98846.0,98843.0,0.044498]
[1735176174163,0.3608,98855.0,98843.0,0.004]
[1735176174472,0.12028068,98856.0,98854.0,0.040494]
[1735176174663,0.12028068,98856.0,98855.0,0.2069]
[1735176175868,0.12028068,98856.0,98855.0,0.5677]
[1735176176375,0.040492,98859.0,98856.0,0.040492]
[1735176176581,0.04049,98864.0,98859.0,0.040491]
[1735176176876,0.01032615,98866.0,98860.0,0.040491]
[1735176177185,0.04049,98862.0,98860.0,0.040491]
[1735176177670,0.040492,98859.0,98855.0,0.56822]
[1735176177870,0.3709141,98872.0,98855.0,0.2069]
[1735176178267,0.040494,98853.0,98849.0,0.18160202]
[1735176178471,0.040493,98855.0,98853.0,0.040494]
[1735176178672,0.040493,98855.0,98854.0,0.3608]
[1735176179580,0.3608,98864.0,98854.0,0.3608]
[1735176179777,0.002,98855.0,98854.0,0.401294]
[1735176180170,0.040491,98862.0,98856.0,0.040492]
[1735176180371,0.040491,98862.0,98854.0,0.3608]
[1735176180569,0.040491,98861.0,98857.0,0.040492]
[1735176180778,0.040491,98860.0,98857.0,0.040492]
[1735176181572,0.040491,98860.0,98858.0,0.040492]
[1735176182479,0.002,98864.0,98854.0,0.3608]
[1735176182679,0.01230083,98864.0,98863.0,0.04049]
[1735176182875,0.040489,98866.0,98863.0,0.04049]
[1735176183071,0.040489,98865.0,98863.0,0.04049]
[1735176183888,0.13031572,98873.0,98854.0,0.3608]
[1735176184083,0.13031572,98873.0,98858.0,0.040492]
[1735176184084,0.04049,98863.0,98858.0,0.040492]
[1735176184274,0.04049,98863.0,98859.0,0.040491]
[1735176184472,0.04049,98863.0,98854.0,0.3608]
[1735176184674,0.04049,98863.0,98862.0,0.3608]
[1735176184974,0.04049,98863.0,98861.0,0.040491]
[1735176185168,0.006,98865.0,98854.0,0.3608]
[1735176185377,0.006,98865.0,98853.0,0.18160202]
[1735176185378,0.040494,98854.0,98853.0,0.18160202]
[1735176185582,0.040494,98854.0,98850.0,0.24112632]
[1735176185781,0.3608,98858.0,98850.0,0.24112632]
[1735176185982,0.040495,98852.0,98850.0,0.24112632]
[1735176186690,0.040494,98853.0,98843.0,0.040498]
[1735176186882,0.040495,98850.0,98844.0,0.040497]
[1735176188581,0.040496,98849.0,98844.0,0.040497]
[1735176189084,0.040496,98849.0,98844.0,0.042497]
[1735176189380,0.040497,98846.0,98844.0,0.004]
[1735176189586,0.040497,98846.0,98844.0,0.002]
[1735176189972,0.040497,98846.0,98844.0,0.004]
[1735176190481,0.040497,98846.0,98844.0,0.003]
[1735176190678,0.1033,98845.0,98844.0,0.003]
[1735176192674,0.1033,98845.0,98844.0,0.002]
[1735176192675,0.25328616,98845.0,98844.0,0.002]
[1735176192876,0.25328616,98845.0,98844.0,0.003]
[1735176194377,0.1033,98845.0,98844.0,0.003]
[1735176196779,0.05050632,98846.0,98844.0,0.003]
[1735176198385,0.12043999,98845.0,98844.0,0.003]
[1735176198776,0.12043999,98845.0,98844.0,0.043498]
[1735176199485,0.040497,98846.0,98844.0,0.043498]
[1735176200486,0.040497,98846.0,98844.0,0.040498]
[1735176200679,0.040497,98846.0,98844.0,0.043498]
[1735176201703,0.3608,98849.0,98848.0,0.040496]
[1735176201886,0.16093399,98852.0,98851.0,0.040495]
[1735176202084,0.12043999,98852.0,98851.0,0.040495]